[Event "Titled Tuesday Blitz February 14 Early 2023"]
[White "Yeletsky, Ivan"]
[Black "Wagh Suyog"]
[WhiteFideId "24180327"]
[BlackFideId "25071688"]
[WhiteElo "2494"]
[BlackElo "2313"]
[Result "1-0"]
[Round "10"]
[TimeControl "180+2"]
[Date "2023.02.14"]
[WhiteClock "0:00:11"]
[BlackClock "0:00:02"]

1. g3 {[%clk 0:03:00]}  d5 {[%clk 0:02:57]} 2. c4 {[%clk 0:02:59]}  c6 {[%clk 0:02:57]} 3. Bg2 {[%clk 0:02:57]}  Nf6 {[%clk 0:02:55]} 4. Nf3 {[%clk 0:02:56]}  g6 {[%clk 0:02:41]} 5. Qa4 {[%clk 0:02:55]}  Nfd7 {[%clk 0:02:38]} 6. Qb3 {[%clk 0:02:49]}  Nf6 {[%clk 0:02:29]} 7. d3 {[%clk 0:02:41]}  Bg7 {[%clk 0:02:28]} 8. O-O {[%clk 0:02:42]}  O-O {[%clk 0:02:28]} 9. Bf4 {[%clk 0:02:42]}  Na6 {[%clk 0:02:24]} 10. Nbd2 {[%clk 0:02:37]}  Nh5 {[%clk 0:02:22]} 11. Be5 {[%clk 0:02:37]}  f6 {[%clk 0:02:19]} 12. Bc3 {[%clk 0:02:35]}  Nc5 {[%clk 0:02:10]} 13. Qa3 {[%clk 0:02:35]}  Ne6 {[%clk 0:01:59]} 14. e3 {[%clk 0:02:10]}  Nc7 {[%clk 0:01:51]} 15. h3 {[%clk 0:01:48]}  f5 {[%clk 0:01:35]} 16. Bxg7 {[%clk 0:01:44]}  Kxg7 {[%clk 0:01:35]} 17. b4 {[%clk 0:01:41]}  Nf6 {[%clk 0:01:28]} 18. Rab1 {[%clk 0:01:41]}  Qd6 {[%clk 0:01:25]} 19. Qc3 {[%clk 0:01:38]}  Rd8 {[%clk 0:01:21]} 20. Rfd1 {[%clk 0:01:28]}  Be6 {[%clk 0:01:18]} 21. Qa1 {[%clk 0:01:10]}  Bg8 {[%clk 0:01:11]} 22. a4 {[%clk 0:01:07]}  Rac8 {[%clk 0:00:58]} 23. b5 {[%clk 0:00:51]}  c5 {[%clk 0:00:56]} 24. a5 {[%clk 0:00:42]}  b6 {[%clk 0:00:39]} 25. a6 {[%clk 0:00:42]}  e6 {[%clk 0:00:35]} 26. Ne5 {[%clk 0:00:41]}  Nce8 {[%clk 0:00:25]} 27. Ndf3 {[%clk 0:00:36]}  Kf8 {[%clk 0:00:18]} 28. Nc6 {[%clk 0:00:29]}  Rd7 {[%clk 0:00:18]} 29. Nfe5 {[%clk 0:00:21]}  Rdc7 {[%clk 0:00:18]} 30. d4 {[%clk 0:00:22]}  cxd4 {[%clk 0:00:16]} 31. Qxd4 {[%clk 0:00:21]}  Nd7 {[%clk 0:00:13]} 32. cxd5 {[%clk 0:00:18]}  Nxe5 {[%clk 0:00:10]} 33. Nxe5 {[%clk 0:00:19]}  exd5 {[%clk 0:00:08]} 34. Nc6 {[%clk 0:00:19]}  Nf6 {[%clk 0:00:08]} 35. g4 {[%clk 0:00:14]}  fxg4 {[%clk 0:00:06]} 36. hxg4 {[%clk 0:00:15]}  Re8 {[%clk 0:00:06]} 37. Rbc1 {[%clk 0:00:13]}  Rd7 {[%clk 0:00:04]} 38. g5 {[%clk 0:00:11]}  Ne4 {[%clk 0:00:05]} 39. Bxe4 {[%clk 0:00:11]}  Rxe4 {[%clk 0:00:05]} 40. Qxe4 {[%clk 0:00:12]}  dxe4 {[%clk 0:00:04]} 41. Rxd6 {[%clk 0:00:13]}  Rxd6 {[%clk 0:00:05]} 42. Nxa7 {[%clk 0:00:14]}  Rd2 {[%clk 0:00:03]} 43. Ra1 {[%clk 0:00:12]}  Bd5 {[%clk 0:00:02]} 44. Nc6 {[%clk 0:00:11]} 1-0


[Site "https://www.chess.com"]

[Event "Titled Tuesday Blitz February 14 Early 2023"]
[White "Costachi, Mihnea"]
[Black "Makhnev, Denis"]
[WhiteFideId "1217518"]
[BlackFideId "13707647"]
[WhiteElo "2476"]
[BlackElo "2483"]
[Result "1-0"]
[Round "10"]
[TimeControl "180+2"]
[Date "2023.02.14"]
[WhiteClock "0:00:03"]
[BlackClock "0:00:02"]

1. Nc3 {[%clk 0:03:00]}  d5 {[%clk 0:02:59]} 2. d4 {[%clk 0:03:00]}  Nf6 {[%clk 0:02:59]} 3. Bf4 {[%clk 0:03:01]}  e6 {[%clk 0:03:00]} 4. e3 {[%clk 0:03:01]}  Bb4 {[%clk 0:02:54]} 5. Ne2 {[%clk 0:02:53]}  O-O {[%clk 0:02:53]} 6. a3 {[%clk 0:02:53]}  Be7 {[%clk 0:02:48]} 7. g4 {[%clk 0:02:50]}  c5 {[%clk 0:02:47]} 8. g5 {[%clk 0:02:49]}  Nfd7 {[%clk 0:02:47]} 9. h4 {[%clk 0:02:49]}  Nc6 {[%clk 0:02:47]} 10. Bh3 {[%clk 0:02:30]}  Re8 {[%clk 0:02:22]} 11. Rg1 {[%clk 0:02:25]}  cxd4 {[%clk 0:02:21]} 12. exd4 {[%clk 0:02:24]}  e5 {[%clk 0:02:22]} 13. Bxd7 {[%clk 0:02:16]}  Qxd7 {[%clk 0:01:54]} 14. Bxe5 {[%clk 0:02:15]}  Bf8 {[%clk 0:01:47]} 15. Qd3 {[%clk 0:02:07]}  Nxe5 {[%clk 0:01:20]} 16. dxe5 {[%clk 0:02:07]}  d4 {[%clk 0:01:21]} 17. Qxd4 {[%clk 0:01:44]}  Qxd4 {[%clk 0:01:21]} 18. Nxd4 {[%clk 0:01:45]}  Rxe5+ {[%clk 0:01:21]} 19. Kd2 {[%clk 0:01:46]}  Bc5 {[%clk 0:01:08]} 20. Nce2 {[%clk 0:01:06]}  Bd7 {[%clk 0:01:08]} 21. b4 {[%clk 0:00:49]}  Bb6 {[%clk 0:01:04]} 22. c4 {[%clk 0:00:50]}  Rd8 {[%clk 0:00:39]} 23. Kc3 {[%clk 0:00:43]}  Re4 {[%clk 0:00:35]} 24. h5 {[%clk 0:00:33]}  Bg4 {[%clk 0:00:29]} 25. c5 {[%clk 0:00:29]}  Bc7 {[%clk 0:00:30]} 26. f3 {[%clk 0:00:29]}  Bxf3 {[%clk 0:00:19]} 27. Nxf3 {[%clk 0:00:25]}  Rxe2 {[%clk 0:00:17]} 28. Rgf1 {[%clk 0:00:20]}  Re3+ {[%clk 0:00:16]} 29. Kc2 {[%clk 0:00:20]}  Bf4 {[%clk 0:00:15]} 30. Rad1 {[%clk 0:00:19]}  Rxd1 {[%clk 0:00:10]} 31. Rxd1 {[%clk 0:00:20]}  Kf8 {[%clk 0:00:10]} 32. Rd3 {[%clk 0:00:18]}  Re2+ {[%clk 0:00:11]} 33. Kb3 {[%clk 0:00:18]}  Ke7 {[%clk 0:00:11]} 34. b5 {[%clk 0:00:18]}  Rf2 {[%clk 0:00:07]} 35. c6 {[%clk 0:00:15]}  bxc6 {[%clk 0:00:08]} 36. bxc6 {[%clk 0:00:16]}  Bd6 {[%clk 0:00:08]} 37. Kc4 {[%clk 0:00:14]}  a6 {[%clk 0:00:06]} 38. Nd4 {[%clk 0:00:14]}  g6 {[%clk 0:00:06]} 39. h6 {[%clk 0:00:14]}  Rf4 {[%clk 0:00:06]} 40. Re3+ {[%clk 0:00:14]}  Kd8 {[%clk 0:00:05]} 41. Kd5 {[%clk 0:00:14]}  Kc7 {[%clk 0:00:06]} 42. Re8 {[%clk 0:00:13]}  Rg4 {[%clk 0:00:06]} 43. Nf3 {[%clk 0:00:11]}  Rg3 {[%clk 0:00:06]} 44. Ke4 {[%clk 0:00:11]}  Kxc6 {[%clk 0:00:05]} 45. Rh8 {[%clk 0:00:12]}  Rg4+ {[%clk 0:00:05]} 46. Ke3 {[%clk 0:00:12]}  Bf4+ {[%clk 0:00:04]} 47. Kf2 {[%clk 0:00:11]}  Kd7 {[%clk 0:00:04]} 48. Rxh7 {[%clk 0:00:11]}  Ke7 {[%clk 0:00:04]} 49. Rg7 {[%clk 0:00:04]}  Kf8 {[%clk 0:00:02]} 50. Rh7 {[%clk 0:00:03]}  Ke7 {[%clk 0:00:02]} 51. Rh8 {[%clk 0:00:04]}  Bxg5 {[%clk 0:00:02]} 52. Ne5 {[%clk 0:00:03]}  Rf4+ {[%clk 0:00:02]} 53. Kg3 {[%clk 0:00:03]}  Rf5 {[%clk 0:00:02]} 54. Nc6+ {[%clk 0:00:03]} 1-0


[Site "https://www.chess.com"]

[Event "Titled Tuesday Blitz February 14 Early 2023"]
[White "Demchenko, Anton"]
[Black "Tan, Zhongyi"]
[WhiteFideId "4160258"]
[BlackFideId "8603642"]
[WhiteElo "2623"]
[BlackElo "2517"]
[Result "1-0"]
[Round "10"]
[TimeControl "180+2"]
[Date "2023.02.14"]
[WhiteClock "0:00:05"]
[BlackClock "0:00:04"]

1. e4 {[%clk 0:03:00]}  c5 {[%clk 0:02:58]} 2. Nf3 {[%clk 0:03:00]}  d6 {[%clk 0:02:57]} 3. d4 {[%clk 0:03:00]}  cxd4 {[%clk 0:02:58]} 4. Nxd4 {[%clk 0:03:01]}  Nf6 {[%clk 0:02:58]} 5. Nc3 {[%clk 0:03:02]}  g6 {[%clk 0:02:59]} 6. Be3 {[%clk 0:02:57]}  Bg7 {[%clk 0:02:59]} 7. Be2 {[%clk 0:02:53]}  O-O {[%clk 0:02:59]} 8. O-O {[%clk 0:02:54]}  Nc6 {[%clk 0:02:59]} 9. a4 {[%clk 0:02:53]}  d5 {[%clk 0:02:54]} 10. exd5 {[%clk 0:02:52]}  Nxd5 {[%clk 0:02:52]} 11. Nxd5 {[%clk 0:02:53]}  Qxd5 {[%clk 0:02:47]} 12. Bf3 {[%clk 0:02:53]}  Qc4 {[%clk 0:02:39]} 13. Nxc6 {[%clk 0:02:37]}  bxc6 {[%clk 0:02:39]} 14. c3 {[%clk 0:02:37]}  Be6 {[%clk 0:02:29]} 15. Re1 {[%clk 0:02:34]}  Rfd8 {[%clk 0:02:27]} 16. Qc1 {[%clk 0:02:34]}  a5 {[%clk 0:02:12]} 17. Bg5 {[%clk 0:02:20]}  Rd7 {[%clk 0:02:08]} 18. Re4 {[%clk 0:01:49]}  Qb3 {[%clk 0:02:02]} 19. Ra3 {[%clk 0:01:37]}  Qb6 {[%clk 0:01:53]} 20. Be3 {[%clk 0:01:32]}  Qc7 {[%clk 0:01:51]} 21. Bf4 {[%clk 0:01:28]}  Qb6 {[%clk 0:01:51]} 22. Re1 {[%clk 0:01:21]}  Rad8 {[%clk 0:01:47]} 23. h3 {[%clk 0:01:18]}  Bf6 {[%clk 0:01:40]} 24. Ra1 {[%clk 0:01:08]}  Bd5 {[%clk 0:01:37]} 25. Bxd5 {[%clk 0:00:35]}  cxd5 {[%clk 0:01:38]} 26. Re2 {[%clk 0:00:33]}  d4 {[%clk 0:01:35]} 27. cxd4 {[%clk 0:00:33]}  Bxd4 {[%clk 0:01:33]} 28. Qc2 {[%clk 0:00:25]}  e5 {[%clk 0:01:11]} 29. Bh6 {[%clk 0:00:18]}  Qf6 {[%clk 0:00:54]} 30. Be3 {[%clk 0:00:11]}  Bxe3 {[%clk 0:00:51]} 31. fxe3 {[%clk 0:00:12]}  Rd3 {[%clk 0:00:46]} 32. Rf1 {[%clk 0:00:12]}  Qe6 {[%clk 0:00:44]} 33. Qc5 {[%clk 0:00:09]}  R8d5 {[%clk 0:00:39]} 34. Qa7 {[%clk 0:00:09]}  e4 {[%clk 0:00:34]} 35. Ref2 {[%clk 0:00:09]}  Rd7 {[%clk 0:00:32]} 36. Qxa5 {[%clk 0:00:08]}  Rxe3 {[%clk 0:00:30]} 37. Rf6 {[%clk 0:00:08]}  Qe8 {[%clk 0:00:23]} 38. Qb5 {[%clk 0:00:08]}  Red3 {[%clk 0:00:18]} 39. Rxf7 {[%clk 0:00:07]}  Qxf7 {[%clk 0:00:16]} 40. Rxf7 {[%clk 0:00:07]}  Rxf7 {[%clk 0:00:17]} 41. Qc4 {[%clk 0:00:07]}  Re3 {[%clk 0:00:14]} 42. a5 {[%clk 0:00:07]}  Re1+ {[%clk 0:00:13]} 43. Kh2 {[%clk 0:00:08]}  Ra1 {[%clk 0:00:13]} 44. Qxe4 {[%clk 0:00:05]}  Rxa5 {[%clk 0:00:10]} 45. Qb4 {[%clk 0:00:03]}  Raf5 {[%clk 0:00:07]} 46. Qb8+ {[%clk 0:00:03]}  Kg7 {[%clk 0:00:07]} 47. b4 {[%clk 0:00:03]}  Rf2 {[%clk 0:00:06]} 48. Qe5+ {[%clk 0:00:03]}  R7f6 {[%clk 0:00:06]} 49. b5 {[%clk 0:00:03]}  Rf5 {[%clk 0:00:06]} 50. Qc7+ {[%clk 0:00:03]}  Rf7 {[%clk 0:00:05]} 51. Qc3+ {[%clk 0:00:04]}  Kh6 {[%clk 0:00:05]} 52. Qe3+ {[%clk 0:00:03]}  g5 {[%clk 0:00:04]} 53. Qb6+ {[%clk 0:00:03]}  R5f6 {[%clk 0:00:04]} 54. Qc5 {[%clk 0:00:03]}  Rb7 {[%clk 0:00:05]} 55. Qd5 {[%clk 0:00:02]}  Rfb6 {[%clk 0:00:03]} 56. Qf5 {[%clk 0:00:03]}  Rxb5 {[%clk 0:00:03]} 57. Qf6+ {[%clk 0:00:03]}  Kh5 {[%clk 0:00:03]} 58. g4+ {[%clk 0:00:04]}  Kh4 {[%clk 0:00:04]} 59. Qh6# {[%clk 0:00:05]} 1-0


[Site "https://www.chess.com"]

[Event "Titled Tuesday Blitz February 14 Early 2023"]
[White "Papasimakopoulos, Alexandros"]
[Black "Pakleza, Zbigniew"]
[WhiteFideId "4244125"]
[BlackFideId "1119290"]
[WhiteElo "2401"]
[BlackElo "2494"]
[Result "1-0"]
[Round "10"]
[TimeControl "180+2"]
[Date "2023.02.14"]
[WhiteClock "0:00:29"]
[BlackClock "0:00:02"]

1. d4 {[%clk 0:03:00]}  d6 {[%clk 0:02:59]} 2. Nf3 {[%clk 0:03:00]}  Bg4 {[%clk 0:02:59]} 3. c4 {[%clk 0:02:59]}  c6 {[%clk 0:02:58]} 4. Qb3 {[%clk 0:02:58]}  Qb6 {[%clk 0:02:57]} 5. Nc3 {[%clk 0:02:51]}  Nf6 {[%clk 0:02:53]} 6. h3 {[%clk 0:02:42]}  Bxf3 {[%clk 0:02:52]} 7. gxf3 {[%clk 0:02:43]}  e6 {[%clk 0:02:47]} 8. f4 {[%clk 0:02:43]}  g6 {[%clk 0:02:46]} 9. e3 {[%clk 0:02:40]}  d5 {[%clk 0:02:44]} 10. c5 {[%clk 0:02:38]}  Qc7 {[%clk 0:02:43]} 11. Qc2 {[%clk 0:02:28]}  Nbd7 {[%clk 0:02:41]} 12. b4 {[%clk 0:02:29]}  Bg7 {[%clk 0:02:39]} 13. a4 {[%clk 0:02:29]}  O-O {[%clk 0:02:38]} 14. Bd2 {[%clk 0:02:23]}  Rfe8 {[%clk 0:02:13]} 15. h4 {[%clk 0:02:23]}  Nf8 {[%clk 0:02:11]} 16. Be2 {[%clk 0:02:19]}  h5 {[%clk 0:02:11]} 17. Bd3 {[%clk 0:02:18]}  Ng4 {[%clk 0:02:08]} 18. Ne2 {[%clk 0:02:11]}  Qe7 {[%clk 0:01:33]} 19. Ng1 {[%clk 0:02:09]}  Nh6 {[%clk 0:01:11]} 20. Nf3 {[%clk 0:02:02]}  Nf5 {[%clk 0:01:11]} 21. b5 {[%clk 0:02:01]}  Nd7 {[%clk 0:01:09]} 22. Rb1 {[%clk 0:01:55]}  Rab8 {[%clk 0:01:05]} 23. a5 {[%clk 0:01:52]}  cxb5 {[%clk 0:01:05]} 24. Bxb5 {[%clk 0:01:49]}  a6 {[%clk 0:01:05]} 25. Bd3 {[%clk 0:01:40]}  Rec8 {[%clk 0:01:04]} 26. Qa4 {[%clk 0:01:30]}  Nf6 {[%clk 0:00:57]} 27. Ng5 {[%clk 0:01:22]}  Ng4 {[%clk 0:00:54]} 28. Ke2 {[%clk 0:01:12]}  Rc7 {[%clk 0:00:50]} 29. Rb6 {[%clk 0:01:11]}  Rbc8 {[%clk 0:00:47]} 30. Qb4 {[%clk 0:01:10]}  f6 {[%clk 0:00:32]} 31. Nxe6 {[%clk 0:01:05]}  Rc6 {[%clk 0:00:09]} 32. Bxf5 {[%clk 0:00:58]}  gxf5 {[%clk 0:00:04]} 33. Nxg7 {[%clk 0:00:56]}  Rxb6 {[%clk 0:00:01]} 34. Nxf5 {[%clk 0:00:47]}  Qd7 {[%clk 0:00:02]} 35. Qxb6 {[%clk 0:00:40]}  Qxf5 {[%clk 0:00:02]} 36. Qxb7 {[%clk 0:00:39]}  Re8 {[%clk 0:00:02]} 37. Qb1 {[%clk 0:00:37]}  Qe6 {[%clk 0:00:02]} 38. Qg6+ {[%clk 0:00:36]}  Kf8 {[%clk 0:00:03]} 39. Rb1 {[%clk 0:00:34]}  f5 {[%clk 0:00:02]} 40. Qxe6 {[%clk 0:00:32]}  Rxe6 {[%clk 0:00:03]} 41. Rb6 {[%clk 0:00:32]}  Kf7 {[%clk 0:00:02]} 42. c6 {[%clk 0:00:31]}  Re8 {[%clk 0:00:02]} 43. Rxa6 {[%clk 0:00:30]}  Nf6 {[%clk 0:00:02]} 44. f3 {[%clk 0:00:29]}  Ke6 {[%clk 0:00:02]} 45. Bb4 {[%clk 0:00:29]}  Rc8 {[%clk 0:00:01]} 46. Rb6 {[%clk 0:00:29]}  Ne8 {[%clk 0:00:01]} 47. a6 {[%clk 0:00:29]}  Nc7 {[%clk 0:00:02]} 48. a7 {[%clk 0:00:29]}  Ra8 {[%clk 0:00:03]} 49. Rb7 {[%clk 0:00:29]}  Rxa7 {[%clk 0:00:02]} 1-0


[Site "https://www.chess.com"]

[Event "Titled Tuesday Blitz February 14 Early 2023"]
[White "Jaracz, Pawel"]
[Black "Bochnicka, Vladimir"]
[WhiteFideId "1102222"]
[BlackFideId "14943450"]
[WhiteElo "2467"]
[BlackElo "2327"]
[Result "1-0"]
[Round "10"]
[TimeControl "180+2"]
[Date "2023.02.14"]
[WhiteClock "0:00:29"]
[BlackClock "0:00:12"]

1. d4 {[%clk 0:03:00]}  Nf6 {[%clk 0:02:55]} 2. c4 {[%clk 0:03:01]}  g6 {[%clk 0:02:55]} 3. h4 {[%clk 0:03:00]}  h5 {[%clk 0:02:54]} 4. Nf3 {[%clk 0:02:59]}  Bg7 {[%clk 0:02:53]} 5. Ng5 {[%clk 0:02:59]}  O-O {[%clk 0:02:52]} 6. Nc3 {[%clk 0:02:58]}  d6 {[%clk 0:02:52]} 7. e4 {[%clk 0:02:57]}  c5 {[%clk 0:02:48]} 8. d5 {[%clk 0:02:56]}  Nbd7 {[%clk 0:02:46]} 9. Be2 {[%clk 0:02:47]}  Rb8 {[%clk 0:02:46]} 10. O-O {[%clk 0:02:46]}  a6 {[%clk 0:02:42]} 11. a4 {[%clk 0:02:46]}  b6 {[%clk 0:02:42]} 12. Bf4 {[%clk 0:02:44]}  Nh7 {[%clk 0:02:38]} 13. Qd2 {[%clk 0:02:40]}  Ne5 {[%clk 0:02:26]} 14. Bg3 {[%clk 0:02:31]}  Nxg5 {[%clk 0:02:18]} 15. hxg5 {[%clk 0:02:31]}  f5 {[%clk 0:01:55]} 16. f4 {[%clk 0:02:22]}  Ng4 {[%clk 0:01:29]} 17. Bxg4 {[%clk 0:02:21]}  hxg4 {[%clk 0:01:30]} 18. e5 {[%clk 0:02:21]}  Bd7 {[%clk 0:01:09]} 19. e6 {[%clk 0:02:21]}  Be8 {[%clk 0:01:09]} 20. b3 {[%clk 0:01:24]}  b5 {[%clk 0:01:08]} 21. a5 {[%clk 0:01:24]}  bxc4 {[%clk 0:01:03]} 22. bxc4 {[%clk 0:01:24]}  Rb3 {[%clk 0:01:04]} 23. Rfc1 {[%clk 0:01:18]}  Qb8 {[%clk 0:00:57]} 24. Be1 {[%clk 0:01:15]}  Qb4 {[%clk 0:00:38]} 25. Qd3 {[%clk 0:01:14]}  Bd4+ {[%clk 0:00:35]} 26. Kf1 {[%clk 0:01:09]}  Ra3 {[%clk 0:00:22]} 27. Rxa3 {[%clk 0:00:58]}  Qxa3 {[%clk 0:00:23]} 28. Rd1 {[%clk 0:00:47]}  Ba4 {[%clk 0:00:17]} 29. Ne2 {[%clk 0:00:44]}  Qxd3 {[%clk 0:00:12]} 30. Rxd3 {[%clk 0:00:45]}  Bg7 {[%clk 0:00:08]} 31. Ra3 {[%clk 0:00:42]}  Bc2 {[%clk 0:00:08]} 32. Bc3 {[%clk 0:00:42]}  Rb8 {[%clk 0:00:07]} 33. Bxg7 {[%clk 0:00:40]}  Kxg7 {[%clk 0:00:08]} 34. Ke1 {[%clk 0:00:32]}  Bd3 {[%clk 0:00:08]} 35. Rxd3 {[%clk 0:00:32]}  Rb4 {[%clk 0:00:09]} 36. Rc3 {[%clk 0:00:31]}  Ra4 {[%clk 0:00:10]} 37. Rb3 {[%clk 0:00:28]}  Rxa5 {[%clk 0:00:10]} 38. Rb7 {[%clk 0:00:28]}  Kf8 {[%clk 0:00:10]} 39. Rb8+ {[%clk 0:00:29]}  Kg7 {[%clk 0:00:11]} 40. Re8 {[%clk 0:00:29]}  Ra4 {[%clk 0:00:10]} 41. Rxe7+ {[%clk 0:00:29]}  Kf8 {[%clk 0:00:11]} 42. Rf7+ {[%clk 0:00:29]}  Ke8 {[%clk 0:00:12]} 43. Rd7 {[%clk 0:00:28]}  Rxc4 {[%clk 0:00:12]} 44. Rxd6 {[%clk 0:00:28]}  a5 {[%clk 0:00:12]} 45. Ra6 {[%clk 0:00:29]}  a4 {[%clk 0:00:12]} 46. Ra8+ {[%clk 0:00:29]}  Ke7 {[%clk 0:00:12]} 47. Ra7+ {[%clk 0:00:29]}  Kd6 {[%clk 0:00:12]} 48. Rd7# {[%clk 0:00:29]} 1-0


[Site "https://www.chess.com"]

[Event "Titled Tuesday Blitz February 14 Early 2023"]
[White "Yuan, Qingyu"]
[Black "Souleidis, Georgios"]
[WhiteFideId "8609772"]
[BlackFideId "4206827"]
[WhiteElo "2373"]
[BlackElo "2419"]
[Result "0-1"]
[Round "10"]
[TimeControl "180+2"]
[Date "2023.02.14"]
[WhiteClock "0:00:01"]
[BlackClock "0:00:15"]

1. e4 {[%clk 0:03:00]}  c5 {[%clk 0:02:59]} 2. Nf3 {[%clk 0:03:00]}  e6 {[%clk 0:02:59]} 3. c3 {[%clk 0:02:57]}  d5 {[%clk 0:02:59]} 4. exd5 {[%clk 0:02:57]}  exd5 {[%clk 0:03:00]} 5. d4 {[%clk 0:02:58]}  Nf6 {[%clk 0:03:00]} 6. Bd3 {[%clk 0:02:51]}  Be7 {[%clk 0:03:00]} 7. dxc5 {[%clk 0:02:50]}  Bxc5 {[%clk 0:03:00]} 8. O-O {[%clk 0:02:50]}  O-O {[%clk 0:03:00]} 9. h3 {[%clk 0:02:49]}  h6 {[%clk 0:02:59]} 10. Nbd2 {[%clk 0:02:46]}  Nc6 {[%clk 0:02:59]} 11. Nb3 {[%clk 0:02:45]}  Bb6 {[%clk 0:02:58]} 12. Bc2 {[%clk 0:02:40]}  Re8 {[%clk 0:02:53]} 13. Qd3 {[%clk 0:02:32]}  Ne4 {[%clk 0:02:48]} 14. Nbd4 {[%clk 0:01:44]}  Qf6 {[%clk 0:02:43]} 15. Be3 {[%clk 0:01:33]}  Bd7 {[%clk 0:02:15]} 16. Rad1 {[%clk 0:01:21]}  Rad8 {[%clk 0:02:15]} 17. Rfe1 {[%clk 0:01:17]}  Bc8 {[%clk 0:02:10]} 18. Ba4 {[%clk 0:01:16]}  Bd7 {[%clk 0:02:07]} 19. Bb3 {[%clk 0:01:14]}  Bc8 {[%clk 0:02:04]} 20. Qb1 {[%clk 0:01:07]}  Qg6 {[%clk 0:01:54]} 21. Kh1 {[%clk 0:00:52]}  Nxd4 {[%clk 0:01:30]} 22. Nxd4 {[%clk 0:00:47]}  Qf6 {[%clk 0:01:21]} 23. Kg1 {[%clk 0:00:41]}  Qg6 {[%clk 0:01:19]} 24. Kh1 {[%clk 0:00:41]}  Qf6 {[%clk 0:01:19]} 25. f3 {[%clk 0:00:37]}  Ng3+ {[%clk 0:01:11]} 26. Kg1 {[%clk 0:00:37]}  Nf5 {[%clk 0:01:01]} 27. Nxf5 {[%clk 0:00:18]}  Bxf5 {[%clk 0:01:01]} 28. Qc1 {[%clk 0:00:17]}  Rxe3 {[%clk 0:00:59]} 29. Rxe3 {[%clk 0:00:17]}  Re8 {[%clk 0:00:59]} 30. Re1 {[%clk 0:00:17]}  Qg5 {[%clk 0:00:54]} 31. Kf2 {[%clk 0:00:17]}  Rxe3 {[%clk 0:00:46]} 32. Rxe3 {[%clk 0:00:17]}  Qh4+ {[%clk 0:00:43]} 33. Kf1 {[%clk 0:00:15]}  Qg3 {[%clk 0:00:21]} 34. Re8+ {[%clk 0:00:06]}  Kh7 {[%clk 0:00:20]} 35. Qe1 {[%clk 0:00:04]}  Bd3+ {[%clk 0:00:19]} 36. Re2 {[%clk 0:00:03]}  Qh2 {[%clk 0:00:16]} 37. Qf2 {[%clk 0:00:02]}  Bxf2 {[%clk 0:00:16]} 38. Kxf2 {[%clk 0:00:02]}  Bxe2 {[%clk 0:00:16]} 39. Bc2+ {[%clk 0:00:02]}  g6 {[%clk 0:00:16]} 40. Bb3 {[%clk 0:00:01]}  Bc4 {[%clk 0:00:15]} 41. Bc2 {[%clk 0:00:01]}  Qd6 {[%clk 0:00:15]} 0-1


[Site "https://www.chess.com"]

[Event "Titled Tuesday Blitz February 14 Early 2023"]
[White "Zemlyanskii, Ivan"]
[Black "Pajeken, Jakob Leon"]
[WhiteFideId "24249971"]
[BlackFideId "12942839"]
[WhiteElo "2300"]
[BlackElo "2417"]
[Result "1-0"]
[Round "10"]
[TimeControl "180+2"]
[Date "2023.02.14"]
[WhiteClock "0:01:15"]
[BlackClock "0:01:59"]

1. d4 {[%clk 0:02:58]}  d5 {[%clk 0:02:58]} 2. Bf4 {[%clk 0:02:58]}  c5 {[%clk 0:02:58]} 3. e4 {[%clk 0:02:57]}  Nc6 {[%clk 0:02:50]} 4. exd5 {[%clk 0:02:44]}  Qxd5 {[%clk 0:02:50]} 5. Nc3 {[%clk 0:02:37]}  Qxd4 {[%clk 0:02:49]} 6. Nd5 {[%clk 0:02:33]}  e5 {[%clk 0:02:38]} 7. Nc7+ {[%clk 0:02:28]}  Kd8 {[%clk 0:02:36]} 8. Nxa8 {[%clk 0:02:28]}  exf4 {[%clk 0:02:36]} 9. Nf3 {[%clk 0:02:23]}  Qxd1+ {[%clk 0:02:35]} 10. Rxd1+ {[%clk 0:02:22]}  Bd7 {[%clk 0:02:35]} 11. Bc4 {[%clk 0:02:17]}  Nh6 {[%clk 0:02:32]} 12. O-O {[%clk 0:02:15]}  Kc8 {[%clk 0:02:31]} 13. Rfe1 {[%clk 0:02:10]}  Be7 {[%clk 0:02:29]} 14. Ne5 {[%clk 0:01:46]}  Nxe5 {[%clk 0:02:29]} 15. Rxe5 {[%clk 0:01:45]}  Nf5 {[%clk 0:02:29]} 16. Bd3 {[%clk 0:01:21]}  Bf6 {[%clk 0:02:02]} 17. Rxc5+ {[%clk 0:01:17]}  Kb8 {[%clk 0:02:02]} 18. Bxf5 {[%clk 0:01:15]}  Bxf5 {[%clk 0:02:02]} 19. Rxf5 {[%clk 0:01:16]}  Kxa8 {[%clk 0:02:02]} 20. Rxf4 {[%clk 0:01:15]}  Kb8 {[%clk 0:02:01]} 21. c3 {[%clk 0:01:15]}  Re8 {[%clk 0:01:59]} 22. Kf1 {[%clk 0:01:15]} 1-0


[Site "https://www.chess.com"]

[Event "Titled Tuesday Blitz February 14 Early 2023"]
[White "Sharapov, Evgeny"]
[Black "Bilych, Olexiy"]
[WhiteFideId "14103133"]
[BlackFideId "14156504"]
[WhiteElo "2375"]
[BlackElo "2441"]
[Result "0-1"]
[Round "10"]
[TimeControl "180+2"]
[Date "2023.02.14"]
[WhiteClock "0:01:33"]
[BlackClock "0:02:03"]

1. e4 {[%clk 0:02:59]}  c5 {[%clk 0:02:59]} 2. Nf3 {[%clk 0:02:59]}  Nc6 {[%clk 0:02:59]} 3. d4 {[%clk 0:02:59]}  cxd4 {[%clk 0:02:59]} 4. Nxd4 {[%clk 0:02:59]}  Nf6 {[%clk 0:02:59]} 5. Nc3 {[%clk 0:02:58]}  e6 {[%clk 0:02:57]} 6. Ndb5 {[%clk 0:02:58]}  Bb4 {[%clk 0:02:57]} 7. a3 {[%clk 0:02:57]}  Bxc3+ {[%clk 0:02:58]} 8. Nxc3 {[%clk 0:02:58]}  d5 {[%clk 0:02:58]} 9. exd5 {[%clk 0:02:58]}  exd5 {[%clk 0:02:59]} 10. Bd3 {[%clk 0:02:57]}  O-O {[%clk 0:02:59]} 11. O-O {[%clk 0:02:57]}  d4 {[%clk 0:03:00]} 12. Ne2 {[%clk 0:02:56]}  Bg4 {[%clk 0:03:01]} 13. f3 {[%clk 0:02:56]}  Bh5 {[%clk 0:03:01]} 14. Nf4 {[%clk 0:02:54]}  Bg6 {[%clk 0:03:02]} 15. Nxg6 {[%clk 0:02:54]}  hxg6 {[%clk 0:03:03]} 16. Qe1 {[%clk 0:02:54]}  Re8 {[%clk 0:03:03]} 17. Qf2 {[%clk 0:02:54]}  Qb6 {[%clk 0:03:03]} 18. b4 {[%clk 0:02:50]}  Nd5 {[%clk 0:02:57]} 19. Bb2 {[%clk 0:02:48]}  Ne3 {[%clk 0:02:56]} 20. Rfe1 {[%clk 0:02:45]}  Ne5 {[%clk 0:02:53]} 21. Kh1 {[%clk 0:02:21]}  Nxd3 {[%clk 0:02:49]} 22. cxd3 {[%clk 0:02:21]}  a5 {[%clk 0:02:46]} 23. bxa5 {[%clk 0:02:12]}  Rxa5 {[%clk 0:02:42]} 24. Re2 {[%clk 0:02:04]}  Rae5 {[%clk 0:02:24]} 25. Rae1 {[%clk 0:02:03]}  Nd1 {[%clk 0:02:17]} 26. Rxd1 {[%clk 0:01:40]}  Rxe2 {[%clk 0:02:16]} 27. Bxd4 {[%clk 0:01:40]}  Qb3 {[%clk 0:02:04]} 28. Qg1 {[%clk 0:01:38]}  Qxd1 {[%clk 0:02:01]} 29. Qxd1 {[%clk 0:01:37]}  Re1+ {[%clk 0:02:02]} 30. Qxe1 {[%clk 0:01:37]}  Rxe1+ {[%clk 0:02:03]} 31. Bg1 {[%clk 0:01:37]}  Ra1 {[%clk 0:02:04]} 32. g4 {[%clk 0:01:33]}  Rxa3 {[%clk 0:02:03]} 0-1


[Site "https://www.chess.com"]